bitfinex-derivatives/quotes_BTCF0:USTF0_20241122
["timestamp","ask_amount","ask_price","bid_price","bid_amount"]
[1732293011173,0.11532071,98600.0,98599.0,0.050687]
[1732293011366,0.11532071,98600.0,98599.0,4e-05]
[1732293011574,0.13977541,98600.0,98599.0,4e-05]
[1732293011874,0.13955176,98600.0,98599.0,4e-05]
[1732293013176,0.02034294,98612.0,98611.0,0.05064]
[1732293013380,0.0158009,98628.0,98623.0,0.050634]
[1732293013673,0.00010872,98628.0,98627.0,0.27471369]
[1732293013877,0.00010872,98628.0,98627.0,4e-05]
[1732293014074,0.30416,98627.0,98619.0,0.11604]
[1732293014267,0.01553335,98623.0,98619.0,0.11604]
[1732293014472,0.01565335,98620.0,98611.0,0.3608]
[1732293014679,0.00632677,98619.0,98612.0,0.11604]
[1732293014870,0.00632677,98619.0,98611.0,0.3608]
[1732293014871,0.00012,98612.0,98611.0,0.47684]
[1732293015067,0.00012,98612.0,98605.0,0.050643]
[1732293015068,0.00644677,98612.0,98605.0,0.050643]
[1732293015271,0.00632677,98611.0,98606.0,0.11604]
[1732293015475,0.02186012,98610.0,98606.0,0.11604]
[1732293015686,0.02186012,98609.0,98606.0,0.11604]
[1732293015879,0.00632677,98608.0,98606.0,0.11604]
[1732293016077,0.02186012,98607.0,98606.0,0.11604]
[1732293016278,0.00632677,98607.0,98606.0,0.11604]
[1732293016586,0.00632677,98607.0,98606.0,0.12604]
[1732293017174,0.0024,98627.0,98608.0,0.050642]
[1732293017369,0.02047889,98627.0,98618.0,0.050636]
[1732293017574,0.36090872,98628.0,98626.0,4e-05]
[1732293017779,0.31048746,98627.0,98615.0,0.3608]
[1732293018084,0.00632746,98626.0,98619.0,0.050636]
[1732293018388,0.00632746,98625.0,98619.0,0.050636]
[1732293018680,0.00632746,98624.0,98621.0,0.050635]
[1732293018880,0.00632746,98623.0,98621.0,0.050635]
[1732293019079,0.00632746,98622.0,98621.0,0.050635]
[1732293019781,0.00632746,98622.0,98619.0,0.116]
[1732293019975,0.00632746,98621.0,98619.0,0.126]
[1732293020168,0.00632746,98620.0,98619.0,0.126]
[1732293020594,0.10125503,98620.0,98617.0,0.116]
[1732293020784,0.050636,98620.0,98619.0,0.02]
[1732293021084,0.46205493,98620.0,98619.0,0.02]
[1732293021388,0.050637,98618.0,98615.0,0.116]
[1732293021675,0.050638,98616.0,98615.0,0.03]
[1732293021879,0.10125697,98616.0,98615.0,0.03]
[1732293022081,0.050644,98604.0,98603.0,0.0015213]
[1732293022270,0.05062757,98604.0,98603.0,0.01]
[1732293022474,0.0064874,98604.0,98603.0,0.01]
[1732293023181,0.0307744,98604.0,98603.0,0.01]
[1732293024480,0.0814184,98604.0,98603.0,0.01]
[1732293024681,0.0307744,98604.0,98603.0,0.01]
[1732293025077,0.00016,98604.0,98603.0,0.3708]
[1732293025982,0.04619254,98604.0,98603.0,0.3708]
[1732293026979,0.04619254,98604.0,98603.0,0.4868]
[1732293027786,0.04619254,98604.0,98603.0,0.126]
[1732293027987,0.0904907,98604.0,98603.0,0.126]
[1732293028378,0.0904907,98604.0,98603.0,0.29234623]
[1732293028983,0.04619254,98604.0,98603.0,0.29234623]
[1732293029380,0.09049127,98604.0,98603.0,0.29234623]
[1732293029576,0.04619254,98604.0,98603.0,0.65314623]
[1732293029775,0.16612167,98604.0,98603.0,0.65314623]
[1732293029975,0.04619254,98604.0,98603.0,0.65314623]
[1732293030587,0.08996434,98611.0,98608.0,0.050642]
[1732293030881,0.11992913,98621.0,98610.0,0.3608]
[1732293031088,0.11992913,98623.0,98622.0,0.050635]
[1732293031282,0.050633,98627.0,98624.0,0.050634]
[1732293031491,0.050633,98626.0,98625.0,0.050633]
[1732293031789,0.050633,98625.0,98624.0,0.14]
[1732293032177,0.050633,98625.0,98622.0,0.17572]
[1732293032178,0.050634,98623.0,98622.0,0.17572]
[1732293032388,0.11384387,98623.0,98622.0,0.17572]
[1732293032589,0.06324987,98623.0,98622.0,0.30572]
[1732293032791,0.15035021,98623.0,98622.0,0.30579152]
[1732293033281,0.06337748,98623.0,98622.0,0.30579152]
[1732293034084,4e-05,98623.0,98622.0,0.30579152]
[1732293034276,4e-05,98623.0,98622.0,0.35642652]
[1732293034480,0.15049699,98623.0,98622.0,0.35642652]
[1732293034680,0.15049699,98623.0,98622.0,0.30579152]
[1732293034876,4e-05,98623.0,98622.0,0.30579152]
[1732293036686,0.15049699,98623.0,98622.0,0.30579152]
[1732293036877,4e-05,98623.0,98622.0,0.30579152]
[1732293037082,0.15083794,98623.0,98622.0,0.30579152]
[1732293037689,4e-05,98623.0,98622.0,0.19007152]
[1732293037990,4e-05,98623.0,98622.0,0.30579152]
[1732293038380,0.05934286,98623.0,98622.0,0.30579152]
[1732293038586,0.06566984,98623.0,98622.0,0.30579152]
[1732293038887,0.00636698,98623.0,98622.0,0.30579152]
[1732293039088,0.15725461,98623.0,98622.0,0.30579152]
[1732293039284,0.15725984,98623.0,98622.0,0.30579152]
[1732293039475,0.15725984,98623.0,98622.0,0.19007152]
[1732293039681,0.00636698,98623.0,98622.0,0.30579152]
[1732293040091,4e-05,98623.0,98622.0,0.49427152]
[1732293040276,0.00010872,98628.0,98627.0,0.050632]
[1732293040477,0.00643495,98628.0,98627.0,0.050632]
[1732293040682,0.02596032,98628.0,98627.0,0.05067201]
[1732293040889,0.07026609,98628.0,98627.0,0.13004001]
[1732293041384,0.22116578,98628.0,98627.0,0.24576001]
[1732293041590,0.07026609,98628.0,98627.0,0.24576001]
[1732293041980,0.13545815,98628.0,98627.0,0.24576001]
[1732293042183,0.13545815,98628.0,98627.0,0.13004001]
[1732293042384,0.13545815,98628.0,98627.0,4.001e-05]
[1732293042587,0.14735969,98628.0,98627.0,0.14004001]
[1732293043188,0.09672769,98628.0,98627.0,0.14004001]
[1732293043486,0.03786238,98628.0,98627.0,0.19067201]
[1732293043987,0.03786203,98628.0,98627.0,0.30639201]
[1732293044183,0.18878317,98628.0,98627.0,0.25576001]
[1732293044379,0.03786203,98628.0,98627.0,0.25576001]
[1732293044580,0.03153563,98628.0,98627.0,0.25576001]
[1732293044788,0.03786212,98628.0,98627.0,0.25576001]
[1732293044988,0.03153563,98628.0,98627.0,0.2760065]
[1732293045488,0.03153563,98628.0,98627.0,0.1360065]
[1732293046281,0.0321084,98628.0,98627.0,0.1360065]
[1732293047193,0.03150652,98628.0,98627.0,0.1360065]
[1732293047391,0.00068149,98628.0,98627.0,0.1360065]
[1732293047580,0.0124929,98628.0,98627.0,0.1360065]
[1732293047787,0.0631249,98628.0,98627.0,0.1360065]
[1732293047990,0.18378073,98628.0,98627.0,0.1360065]
[1732293048292,0.0631249,98628.0,98627.0,0.1360065]
[1732293048683,0.18378073,98628.0,98627.0,0.1360065]
[1732293048993,0.06308064,98628.0,98627.0,0.1360065]
[1732293049195,0.18373647,98628.0,98627.0,0.1360065]
[1732293049391,0.01244864,98628.0,98627.0,0.1360065]
[1732293049592,0.01244864,98628.0,98627.0,0.1359665]
[1732293050087,0.13310447,98628.0,98627.0,0.1359665]
[1732293050395,0.01244864,98628.0,98627.0,0.1359665]
[1732293051088,0.07689598,98628.0,98627.0,0.11568]
[1732293051279,0.25787555,98628.0,98627.0,0.11568]
[1732293051490,0.07689598,98628.0,98627.0,0.11568]
[1732293051988,0.01244864,98628.0,98627.0,0.11568]
[1732293052788,0.06308064,98628.0,98627.0,0.11568]
[1732293053095,0.21389371,98628.0,98627.0,0.11568]
[1732293053398,0.06308064,98628.0,98627.0,0.11568]
[1732293055088,0.01244864,98628.0,98624.0,0.050634]
[1732293055290,0.050633,98626.0,98625.0,0.11568]
[1732293055491,0.06240015,98626.0,98625.0,0.11568]
[1732293055797,0.09280015,98626.0,98625.0,0.11568]
[1732293056388,0.081033,98626.0,98625.0,0.11568]
[1732293056793,0.0304,98626.0,98623.0,0.35512131]
[1732293057089,0.081033,98626.0,98625.0,0.11568]
[1732293057296,0.081033,98626.0,98623.0,0.40627531]
[1732293057501,0.050633,98625.0,98624.0,0.11568]
[1732293057798,0.06264603,98625.0,98624.0,0.11568]
[1732293059196,0.050633,98625.0,98624.0,0.11568]
[1732293059996,0.0304,98626.0,98625.0,0.050633]
[1732293060193,0.00068149,98628.0,98627.0,0.050632]
[1732293063801,0.05131349,98628.0,98627.0,0.050632]
[1732293064493,0.00068149,98628.0,98627.0,0.050632]
[1732293065298,0.05131349,98628.0,98627.0,0.050632]
[1732293067806,0.05131349,98628.0,98627.0,0.166112]
[1732293070804,0.00068149,98628.0,98627.0,0.166112]
[1732293071502,0.00068149,98628.0,98627.0,0.050632]
[1732293071708,0.00068149,98628.0,98627.0,0.166112]
[1732293076104,0.00068149,98628.0,98627.0,0.47034352]
[1732293076303,0.0024,98645.0,98644.0,0.050623]
[1732293076510,0.00152093,98646.0,98645.0,0.050623]
[1732293076913,0.00152093,98646.0,98645.0,0.050663]
[1732293077416,0.05214293,98646.0,98645.0,0.050663]
[1732293080115,0.00152093,98646.0,98645.0,0.050663]
[1732293080317,0.00152093,98646.0,98645.0,0.07122506]
[1732293080616,0.00152093,98646.0,98645.0,0.07135678]
[1732293080816,0.05214293,98646.0,98645.0,0.07135678]
[1732293082218,0.0419,98664.0,98645.0,0.07135678]
[1732293082219,0.0027,98680.0,98645.0,0.02073378]
[1732293082421,0.12104033,98693.0,98677.0,0.3608]
[1732293082715,0.001,98700.0,98677.0,0.3608]
[1732293082716,0.050595,98700.0,98692.0,0.36084]
[1732293082915,0.050595,98700.0,98699.0,0.3608]
[1732293083119,0.050595,98700.0,98699.0,0.36084]
[1732293083309,0.050589,98712.0,98699.0,0.36084]
[1732293083614,1.551345,98719.0,98711.0,0.36084]
[1732293083814,1.5,98719.0,98711.0,0.36084]
[1732293084018,1.550585,98719.0,98718.0,4e-05]
[1732293084408,1.854465,98719.0,98718.0,4e-05]
[1732293085719,2.17452016,98719.0,98718.0,4e-05]
[1732293085914,2.53532016,98719.0,98699.0,0.36132]
[1732293086115,2.53532016,98719.0,98699.0,0.2608]
[1732293086116,0.0506,98700.0,98699.0,0.2608]
[1732293086313,0.35456,98700.0,98699.0,0.2108]
[1732293086620,0.050603,98694.0,98693.0,0.00010078]
[1732293086814,0.354563,98694.0,98693.0,0.00010078]
[1732293087011,0.30396,98694.0,98690.0,0.3608]
[1732293087216,0.30396,98693.0,98690.0,0.3608]
[1732293087410,0.354564,98693.0,98690.0,0.3608]
[1732293087616,0.354564,98692.0,98690.0,0.3608]
[1732293087820,0.050604,98692.0,98690.0,0.3608]
[1732293088118,0.30396,98691.0,98690.0,0.2608]
[1732293088816,4e-05,98694.0,98690.0,0.2608]
[1732293089019,0.11548,98694.0,98690.0,0.2608]
[1732293089327,4e-05,98694.0,98690.0,0.2608]
[1732293089621,4e-05,98694.0,98693.0,4e-05]
[1732293090321,0.6648,98694.0,98693.0,4e-05]
[1732293090919,1.50004,98694.0,98693.0,4e-05]
[1732293093123,4e-05,98694.0,98693.0,4e-05]
[1732293094621,0.050643,98694.0,98693.0,4e-05]
[1732293096025,4e-05,98694.0,98693.0,4e-05]
[1732293096723,4e-05,98694.0,98693.0,0.04004]
[1732293097122,0.050643,98694.0,98693.0,0.04004]
[1732293097516,4e-05,98694.0,98693.0,0.04004]
[1732293097717,4e-05,98694.0,98693.0,0.090643]
[1732293097923,4e-05,98694.0,98693.0,0.123143]
[1732293098126,4e-05,98694.0,98693.0,0.153443]
[1732293098932,4e-05,98694.0,98693.0,0.17875536]
[1732293099436,0.050643,98694.0,98693.0,0.07254]
[1732293099938,0.06455045,98694.0,98693.0,0.07254]
[1732293100236,0.050643,98694.0,98693.0,0.07254]
[1732293100636,0.050643,98694.0,98693.0,0.03254]
[1732293101540,0.06447896,98694.0,98693.0,0.03254]
[1732293101740,0.06447896,98694.0,98693.0,4e-05]
[1732293104338,0.086183,98694.0,98693.0,4e-05]
[1732293106144,0.11191325,98694.0,98693.0,4e-05]
[1732293108334,0.03960621,98694.0,98693.0,4e-05]
[1732293108536,0.03960621,98694.0,98693.0,0.160643]
[1732293109137,0.03960621,98694.0,98693.0,0.11004]
[1732293109138,0.09020921,98694.0,98693.0,0.11004]
[1732293109344,0.09020921,98694.0,98693.0,0.160643]
[1732293109345,0.03960621,98694.0,98693.0,0.160643]
[1732293110735,0.09020921,98694.0,98693.0,0.11004]
[1732293111342,0.07637325,98694.0,98693.0,0.11004]
[1732293111643,0.1122875,98694.0,98693.0,0.11004]
[1732293113738,0.050612,98677.0,98674.0,0.3655]
[1732293114047,0.06450517,98677.0,98676.0,0.05]
[1732293114632,0.050692,98677.0,98676.0,0.05]
[1732293114838,0.06434597,98677.0,98676.0,0.05]
[1732293115141,0.01373397,98677.0,98676.0,0.100612]
[1732293115338,0.3608,98697.0,98676.0,0.05]
[1732293115540,0.050605,98690.0,98689.0,0.3608]
[1732293115742,0.050605,98690.0,98689.0,0.5223]
[1732293115943,0.050598,98705.0,98689.0,0.5223]
[1732293116144,0.02234909,98693.0,98691.0,0.050604]
[1732293116339,0.07295309,98692.0,98691.0,0.050604]
[1732293116845,0.02234909,98692.0,98691.0,0.050604]
[1732293117439,0.0506,98699.0,98693.0,0.050603]
[1732293117647,0.04825461,98694.0,98693.0,0.050603]
[1732293117839,0.04825461,98694.0,98693.0,0.050643]
[1732293118543,0.04825461,98694.0,98693.0,4e-05]
[1732293118544,0.04846198,98694.0,98693.0,4e-05]
[1732293118848,0.09906498,98694.0,98693.0,0.050643]
[1732293119545,0.09906498,98694.0,98693.0,4e-05]
[1732293119934,0.35242198,98694.0,98671.0,0.3608]
[1732293120139,0.050616,98669.0,98668.0,0.0024]
[1732293120346,0.050619,98663.0,98662.0,0.3937]
[1732293120548,0.050619,98663.0,98662.0,0.43375068]
[1732293120748,0.050659,98663.0,98662.0,0.07295068]
[1732293121047,0.050659,98663.0,98662.0,0.43375068]
[1732293121549,4e-05,98663.0,98662.0,0.43375068]
[1732293121849,4e-05,98663.0,98662.0,0.48436968]
[1732293122058,4e-05,98663.0,98662.0,0.43375068]
[1732293122346,4e-05,98663.0,98662.0,0.48436968]
[1732293124645,4e-05,98663.0,98662.0,0.43375068]
[1732293124846,4e-05,98663.0,98662.0,0.48436968]
[1732293126753,0.050659,98663.0,98662.0,0.43375068]
[1732293127054,0.050659,98663.0,98662.0,0.40085068]
[1732293127440,0.050659,98663.0,98662.0,5.068e-05]
[1732293127653,0.050659,98663.0,98643.0,0.0094]
[1732293127654,0.050626,98649.0,98643.0,0.0094]
[1732293127855,0.050626,98649.0,98645.0,4e-05]
[1732293128153,0.050666,98649.0,98645.0,4e-05]
[1732293128553,0.112766,98649.0,98645.0,4e-05]
[1732293128845,0.37966182,98649.0,98645.0,4e-05]
[1732293129050,0.050628,98646.0,98645.0,4e-05]
[1732293129249,0.050668,98646.0,98645.0,4e-05]
[1732293129551,0.06407133,98646.0,98645.0,4e-05]
[1732293130148,0.050668,98646.0,98645.0,4e-05]
[1732293130648,0.06407118,98646.0,98645.0,4e-05]
[1732293131047,0.03856351,98646.0,98645.0,4e-05]
[1732293131248,0.02516033,98646.0,98645.0,4e-05]
[1732293133753,4e-05,98646.0,98645.0,4e-05]
[1732293135056,0.101256,98645.0,98631.0,0.0024]
[1732293135355,0.101256,98645.0,98613.0,0.0027]
[1732293135356,0.050642,98618.0,98616.0,0.0024]
[1732293135561,0.050643,98616.0,98611.0,0.00204079]
[1732293135857,8.001e-05,98612.0,98611.0,0.01152079]
[1732293137650,8.001e-05,98612.0,98611.0,0.04242079]
[1732293137859,0.3608,98635.0,98611.0,0.04242079]
[1732293138047,0.11528,98639.0,98622.0,0.3608]
[1732293138247,0.01315891,98638.0,98634.0,4e-05]
[1732293138548,0.050633,98635.0,98634.0,4e-05]
[1732293138749,0.06379191,98635.0,98634.0,4e-05]
[1732293139059,0.050633,98635.0,98634.0,4e-05]
[1732293139561,0.411433,98635.0,98634.0,4e-05]
[1732293139753,0.050633,98635.0,98634.0,4e-05]
[1732293141946,0.411433,98635.0,98634.0,4e-05]
[1732293142349,0.050633,98635.0,98634.0,4e-05]
[1732293142562,0.2908,98645.0,98638.0,0.050631]
[1732293142765,0.2908,98645.0,98634.0,0.05004]
[1732293142766,0.01311113,98644.0,98639.0,0.050631]
[1732293142951,0.01311113,98643.0,98639.0,0.3608]
[1732293143148,0.0313,98656.0,98639.0,0.3608]
[1732293143355,0.01333409,98651.0,98647.0,0.050627]
[1732293143659,0.0313,98656.0,98647.0,0.09]
[1732293143864,0.050626,98649.0,98647.0,0.09]
[1732293144161,0.050631,98640.0,98639.0,0.3608]
[1732293144553,0.050671,98640.0,98639.0,0.3608]
[1732293144858,0.050633,98636.0,98635.0,0.0305]
[1732293145163,0.050633,98635.0,98634.0,4e-05]
[1732293145455,0.050673,98635.0,98634.0,4e-05]
[1732293146265,0.06401378,98635.0,98634.0,4e-05]
[1732293146564,0.06402619,98635.0,98634.0,4e-05]
[1732293147962,0.20433027,98635.0,98634.0,4e-05]
[1732293148164,0.20433027,98635.0,98621.0,0.3608]
[1732293148165,0.05064,98622.0,98621.0,0.3608]
[1732293148659,0.06406352,98622.0,98621.0,0.3608]
[1732293149048,0.42486352,98622.0,98606.0,0.0319]
[1732293149253,0.050645,98612.0,98606.0,0.0319]
[1732293149552,0.06406852,98612.0,98605.0,0.00155]
[1732293150261,0.06385951,98612.0,98605.0,0.00155]
[1732293150461,0.050647,98609.0,98605.0,0.00155]
[1732293150861,0.050687,98609.0,98605.0,0.00155]
[1732293151256,0.1410235,98609.0,98605.0,0.00155]
[1732293151462,0.050687,98609.0,98605.0,0.00155]
[1732293151858,0.050651,98601.0,98600.0,0.1]
[1732293152259,0.050691,98601.0,98600.0,0.1]
[1732293152457,0.14103479,98601.0,98600.0,0.1]
[1732293152653,0.050691,98601.0,98600.0,0.1]
[1732293156164,0.05066,98583.0,98515.0,0.050694]
[1732293156464,0.050668,98567.0,98557.0,0.0094]
[1732293156669,0.050668,98567.0,98553.0,0.3608]
[1732293156670,0.831028,98567.0,98553.0,0.3608]
[1732293156871,0.09030364,98555.0,98554.0,5.218e-05]
[1732293157168,0.050674,98555.0,98554.0,5.218e-05]
[1732293159867,0.355074,98555.0,98540.0,0.3608]
[1732293160073,0.050681,98542.0,98540.0,0.3608]
[1732293160968,0.08999454,98547.0,98543.0,0.05068]
[1732293161274,0.1152,98551.0,98546.0,4e-05]
[1732293161464,0.1152,98551.0,98548.0,0.050677]
[1732293161775,0.11405,98551.0,98550.0,4e-05]
[1732293161974,0.11999273,98554.0,98550.0,4e-05]
[1732293162269,0.050673,98557.0,98553.0,4e-05]
[1732293162473,0.131738,98556.0,98553.0,4e-05]
[1732293162769,0.15050851,98566.0,98548.0,0.3608]
[1732293162770,0.11982209,98558.0,98556.0,4e-05]
[1732293162965,0.01190529,98557.0,98556.0,4e-05]
[1732293163764,0.050677,98549.0,98548.0,0.3608]
[1732293164064,0.050757,98549.0,98548.0,0.3608]
[1732293164766,0.165997,98549.0,98548.0,0.3608]
[1732293165072,0.050681,98541.0,98540.0,0.3608]
[1732293165461,0.050761,98541.0,98540.0,0.3608]
[1732293165765,0.050684,98537.0,98529.0,0.3608]
[1732293166157,8e-05,98537.0,98533.0,0.050686]
[1732293166357,0.089826,98537.0,98536.0,0.1005]
[1732293166581,8e-05,98537.0,98536.0,0.151184]
[1732293167476,0.10978129,98545.0,98540.0,0.050682]
[1732293167660,0.09978129,98545.0,98540.0,0.050682]
[1732293167866,0.050678,98547.0,98540.0,0.050682]
[1732293168360,0.05068,98544.0,98538.0,0.3608]
[1732293168768,0.05068,98544.0,98539.0,0.050682]
[1732293168975,0.05068,98543.0,98538.0,0.3608]
[1732293169271,0.050678,98548.0,98541.0,0.050681]
[1732293169672,0.050678,98548.0,98547.0,4e-05]
[1732293170061,0.355118,98548.0,98547.0,4e-05]
[1732293170267,0.050687,98530.0,98522.0,0.0094]
[1732293170468,0.050687,98530.0,98521.0,0.0312]
[1732293170469,0.14035453,98530.0,98529.0,0.3708]
[1732293170676,4e-05,98530.0,98529.0,0.3708]
[1732293170871,4e-05,98530.0,98529.0,0.421488]
[1732293172967,0.050682,98540.0,98535.0,0.050684]
[1732293173166,0.050682,98540.0,98539.0,0.3608]
[1732293173367,0.050682,98540.0,98539.0,0.68084]
[1732293174175,0.050682,98540.0,98539.0,4e-05]
[1732293174681,0.165962,98540.0,98539.0,4e-05]
[1732293175267,0.17734963,98540.0,98539.0,4e-05]
[1732293175475,0.17734963,98540.0,98521.0,0.0312]
[1732293175476,0.050683,98539.0,98521.0,0.0312]
[1732293175771,4e-05,98522.0,98521.0,0.1712]
[1732293177376,0.050731,98522.0,98521.0,0.1712]
[1732293179176,0.14066532,98522.0,98521.0,0.1712]
[1732293179473,0.050731,98522.0,98521.0,0.1712]
[1732293180372,0.09007055,98522.0,98521.0,0.1712]
[1732293180566,4e-05,98522.0,98521.0,0.221892]
[1732293180780,0.07007513,98527.0,98521.0,0.1712]
[1732293181084,0.10512,98542.0,98526.0,0.3608]
[1732293181268,0.02956333,98541.0,98537.0,0.411483]
[1732293181581,0.3608,98545.0,98537.0,0.411483]
[1732293181582,0.14944901,98549.0,98543.0,0.05068]
[1732293181780,0.0197393,98548.0,98547.0,0.050678]
[1732293182180,0.00126242,98551.0,98547.0,0.3608]
[1732293182479,0.04193642,98556.0,98551.0,0.050676]
[1732293182688,0.14944901,98564.0,98547.0,0.3608]
[1732293182984,0.14944901,98563.0,98555.0,4e-05]
[1732293183292,0.14944901,98563.0,98555.0,0.18004]
[1732293183879,0.050674,98556.0,98555.0,0.18004]
[1732293184280,0.05700664,98556.0,98555.0,4e-05]
[1732293184471,0.050674,98556.0,98555.0,4e-05]
[1732293184680,0.41780676,98556.0,98555.0,4e-05]
[1732293184876,0.050683,98538.0,98530.0,0.0024]
[1732293185079,0.050683,98538.0,98527.0,0.060089]
[1732293185080,0.050683,98538.0,98537.0,0.3708]
[1732293185579,0.050688,98528.0,98527.0,0.0325]
[1732293185782,0.050688,98528.0,98527.0,0.0925]
[1732293185975,0.050728,98528.0,98527.0,0.06]
[1732293186381,0.050689,98527.0,98516.0,0.3608]
[1732293186688,0.050729,98527.0,98516.0,0.3608]
[1732293187477,0.050729,98527.0,98503.0,0.47592]
[1732293187478,4e-05,98527.0,98503.0,0.3608]
[1732293187677,0.050699,98506.0,98505.0,0.18]
[1732293187975,0.411579,98506.0,98505.0,0.18]
[1732293188374,0.050702,98501.0,98487.0,0.00152312]
[1732293188684,0.05071,98486.0,98485.0,0.00052]
[1732293188886,0.05072,98467.0,98466.0,0.0304]
[1732293189084,0.05072,98467.0,98466.0,0.0404]
[1732293189387,0.3608,98473.0,98444.0,0.3632]
[1732293189687,0.050802,98463.0,98445.0,0.0329]
[1732293190082,0.050802,98463.0,98450.0,0.050728]
[1732293191187,0.050802,98463.0,98446.0,0.05073]
[1732293191385,0.050802,98463.0,98445.0,0.0329]
[1732293193174,0.050802,98463.0,98448.0,0.050729]
[1732293193692,0.050802,98463.0,98450.0,0.050728]
[1732293194280,0.050725,98456.0,98454.0,0.3608]
[1732293194484,8e-05,98463.0,98446.0,5.514e-05]
[1732293194485,0.05073,98448.0,98446.0,5.514e-05]
[1732293194784,8e-05,98447.0,98446.0,5.514e-05]
[1732293195388,0.36088,98447.0,98446.0,5.514e-05]
[1732293196990,0.36088,98447.0,98437.0,0.050735]
[1732293197188,0.36088,98447.0,98438.0,0.050734]
[1732293197387,0.36088,98447.0,98439.0,0.3608]
[1732293197686,8e-05,98447.0,98445.0,0.050731]
[1732293198483,8e-05,98447.0,98445.0,0.060731]
[1732293199088,8e-05,98447.0,98445.0,0.01]
[1732293201091,8e-05,98447.0,98445.0,0.060731]
[1732293202288,8e-05,98447.0,98446.0,0.0321]
[1732293205592,0.3608,98457.0,98449.0,0.050724]
[1732293205894,0.41152,98457.0,98450.0,0.050723]
[1732293206095,0.3608,98457.0,98451.0,0.050722]
[1732293206497,0.3608,98466.0,98455.0,0.050721]
[1732293206698,0.3608,98466.0,98455.0,0.4208]
[1732293206699,0.3508,98466.0,98455.0,0.4208]
[1732293206888,0.050712,98472.0,98465.0,0.050755]
[1732293207191,0.0352,98476.0,98471.0,4e-05]
[1732293207401,0.050711,98474.0,98471.0,4e-05]
[1732293207707,0.0352,98476.0,98471.0,4e-05]
[1732293207887,0.3608,98477.0,98475.0,4e-05]
[1732293208083,0.050709,98477.0,98475.0,0.04004]
[1732293208287,0.050709,98477.0,98476.0,4e-05]
[1732293208490,0.1152,98485.0,98476.0,4e-05]
[1732293208491,0.050708,98480.0,98476.0,4e-05]
[1732293208694,0.050708,98479.0,98476.0,4e-05]
[1732293208988,8e-05,98486.0,98476.0,4e-05]
[1732293209189,8e-05,98486.0,98485.0,0.3608]
[1732293209394,8e-05,98486.0,98485.0,0.4308]
[1732293210087,8e-05,98486.0,98485.0,0.43084]
[1732293210390,8e-05,98486.0,98485.0,4e-05]
[1732293211286,8e-05,98486.0,98485.0,0.01004]
[1732293211692,0.050785,98486.0,98485.0,0.01004]
[1732293213191,0.050785,98486.0,98485.0,4e-05]
[1732293213898,8e-05,98486.0,98485.0,4e-05]
[1732293215096,0.050713,98470.0,98469.0,0.3608]
[1732293215487,0.050753,98470.0,98469.0,0.3608]
[1732293217201,0.411553,98470.0,98456.0,0.36132]
[1732293217389,0.411553,98470.0,98456.0,0.00052]
[1732293217390,0.05072,98457.0,98456.0,0.00052]
[1732293217585,0.050724,98448.0,98444.0,0.00052]
[1732293217791,0.050724,98448.0,98433.0,0.0024]
[1732293217792,0.050724,98448.0,98430.0,0.0321]
[1732293217985,0.050764,98448.0,98430.0,0.0321]
[1732293218186,0.411564,98448.0,98430.0,0.0321]
[1732293218798,0.4418679,98448.0,98430.0,0.0321]
[1732293219201,0.0810679,98448.0,98430.0,0.18025395]
[1732293219399,4e-05,98448.0,98438.0,0.3608]
[1732293219905,4e-05,98448.0,98443.0,0.050727]
[1732293220195,4e-05,98448.0,98444.0,0.050726]
[1732293220394,4e-05,98448.0,98447.0,0.03068262]
[1732293220794,4e-05,98448.0,98447.0,0.44220762]
[1732293221688,4e-05,98448.0,98447.0,0.03068262]
[1732293222395,0.050764,98448.0,98447.0,0.00068262]
[1732293223100,0.411564,98448.0,98447.0,0.00068262]
[1732293224294,0.40402753,98448.0,98447.0,0.00068262]
[1732293227710,0.40402753,98448.0,98447.0,0.03068262]
[1732293228398,0.70874753,98448.0,98447.0,0.03068262]
[1732293228603,0.70874753,98448.0,98447.0,0.00068262]
[1732293229599,0.05073,98446.0,98426.0,0.00152407]
[1732293229897,0.050736,98436.0,98435.0,0.16]
[1732293230298,0.470496,98436.0,98435.0,0.15366945]
[1732293230495,0.41976,98436.0,98407.0,0.0302]
[1732293230696,0.3608,98413.0,98412.0,0.19]
[1732293230913,0.411547,98413.0,98412.0,0.19]
[1732293233512,0.44250994,98413.0,98412.0,0.19]
[1732293233704,0.050753,98402.0,98401.0,0.03063417]
[1732293233896,0.411553,98402.0,98401.0,0.05]
[1732293234103,0.411593,98402.0,98401.0,0.05]
[1732293235415,0.36084,98402.0,98401.0,0.05]
[1732293235602,4e-05,98402.0,98401.0,0.05]
[1732293237408,4e-05,98402.0,98401.0,0.100754]
[1732293237609,0.3508,98422.0,98401.0,0.405634]
[1732293237815,0.3508,98422.0,98410.0,0.14815395]
[1732293238012,0.2908,98422.0,98421.0,4.001e-05]
[1732293238209,0.11504,98434.0,98421.0,0.04004001]
[1732293238413,0.00068,98439.0,98427.0,0.05074]
[1732293238620,0.11504,98441.0,98427.0,0.05074]
[1732293238912,0.3608,98434.0,98421.0,0.04]
[1732293239213,4e-05,98422.0,98421.0,0.04]
[1732293240408,4e-05,98422.0,98421.0,0.090743]
[1732293240613,4e-05,98422.0,98421.0,0.04]
[1732293241909,0.411583,98422.0,98421.0,0.04]
[1732293242107,4e-05,98422.0,98421.0,0.04]
[1732293242301,4e-05,98422.0,98421.0,0.090743]
[1732293242718,0.34084,98445.0,98421.0,0.04]
[1732293242916,0.34084,98445.0,98435.0,0.050736]
[1732293243115,0.45003406,98453.0,98444.0,8e-05]
[1732293243411,0.3608,98465.0,98457.0,0.050725]
[1732293243610,0.165641,98466.0,98454.0,0.050726]
[1732293243817,0.3608,98464.0,98457.0,8e-05]
[1732293244314,0.05224806,98458.0,98457.0,8e-05]
[1732293244517,0.00152406,98458.0,98457.0,8e-05]
[1732293245121,0.3608,98468.0,98457.0,8e-05]